Workbook

Sheet PRICING SCHEDULE
C1: SUPPLY CHAIN MANAGEMENT
C2: Pricing schedule
B3: RFx No | C3: RFB 2789/2023
B4: RFx Title | C4: PROCUREMENT OF SOFTWARE LICENCES WITH SUPPORT AND MAINTENANCE FOR OPENTEXT DOCUMENTUM, OPENTEXT CAPTIVA ENTERPRISE CAPTURE AND IMAGE TRUST ON BEHALF OF THE GAUTENG DEPARTMENT OF ROADS AND TRANSPORT (GDRT) FOR A PERIOD OF 3 YEARS
B5: Bidder Name
B7: 1. INSTRUCTION FOR COMPLETING THE PRICING SCHEDULE
B8: (a) THIS PRICING SCHEDULE MUST BE SUBMITTED SEPARATELY FROM THE TECHNICAL RESPONSE, failing which the BID may be DISQUALIFIED.
B9: (b) Bidder must complete/enter YELLOW cells only
B10: (c) Unit and Line prices must be VAT EXCLUSIVE and in South African Rand (ZAR) currency.
B11: (e) The price must include all cost to deliver the goods or render the service, including all applicable taxes, duty fees, logistics/delivery, storage, labour, overtime and subsistance and travel
B12: (f) Prices that are dependent on Rate of Exchange (ROE) must use ROE indicated below, then enter in Column "Forex %" the percentage of the price that is ROE dependent (0% means the price is not ROE dependent)
C13: Foreign currency | D13: South African Rand (ZAR) exchange rate
C14: 1 US Dollar | D14: R18.79 | G14: Mark with an X, which ROE is applicable
C15: 1 Euro | D15: R20.71
C16: 1 Pound (UK) | D16: R23.98
F18: YEAR 1 | I18: YEAR 2 | L18: YEAR 3 | O18: TOTAL
A19: Item No | C19: Goods/Service description | D19: Unit of measure | E19: Forex % | F19: Qty | G19: Unit Price (Excl VAT) | H19: Line Price Y1 | I19: Qty | J19: Unit Price (Excl VAT) | K19: Line Price Y2 | L19: Qty | M19: Unit Price (Excl VAT) | N19: Line Price Y3 | O19: Line Price Term (Excl VAT) | P19: Forex Price portion | Q19: BRAND / MODEL | R19: Price clarification comment
A20: 1 | B20: OPENTEXT DOCUMENTUM LICENSE AND IMAGE TRUST
A21: 1.1 | B21: 457-101-905 | C21: Documentum Platform 51-200=UA | D21: Annually | E21: 0% | F21: 153 | G21: 0 | H21: =F21*G21 -> 0 | I21: 153 | J21: 0 | K21: =I21*J21 -> 0 | L21: 153 | M21: 0 | N21: =L21*M21 -> 0 | O21: =H21+K21+N21 -> 0 | P21: =E21*O21 -> 0
A22: 1.2 | B22: 457-101-910 | C22: DCTM Platform Extension 51-200=UA | D22: Annually | E22: 0% | F22: 51 | G22: 0 | H22: =F22*G22 -> 0 | I22: 51 | J22: 0 | K22: =I22*J22 -> 0 | L22: 51 | M22: 0 | N22: =L22*M22 -> 0 | O22: =H22+K22+N22 -> 0 | P22: =E22*O22 -> 0
A23: 1.3 | B23: 457-100-263 | C23: Certified Records Manager 51-200 | D23: Annually | E23: 0% | F23: 51 | G23: 0 | H23: 0 | I23: 51 | J23: 0 | K23: 0 | L23: 51 | M23: 0 | N23: 0 | O23: 0 | P23: =E23*O23 -> 0
A24: 1.4 | B24: 457-101-850 | C24: EMC DCTM WebTop 51-200=UA | D24: Annually | E24: 0% | F24: 51 | G24: 0 | H24: 0 | I24: 51 | J24: 0 | K24: 0 | L24: 51 | M24: 0 | N24: 0 | O24: 0 | P24: =E24*O24 -> 0
A25: 1.5 | B25: 457-100-442 | C25: CAPTIVA STANDARD SERVER 100K PPY BUNGLE | D25: Annually | E25: 0% | F25: 1 | G25: 0 | H25: 0 | I25: 1 | J25: 0 | K25: 0 | L25: 1 | M25: 0 | N25: 0 | O25: 0 | P25: =E25*O25 -> 0
A26: 1.6 | B26: 456-102-264 | C26: Captiva Server Volume+ 100k PPY Perpetual | D26: Annually | E26: 0% | F26: 5 | G26: 0 | H26: 0 | I26: 5 | J26: 0 | K26: 0 | L26: 5 | M26: 0 | N26: 0 | O26: 0 | P26: =E26*O26 -> 0
A27: 1.7 | B27: 456-102-275 | C27: CAPTIVA ATTENDANT CLIENT | D27: Annually | E27: 0% | F27: 2 | G27: 0 | H27: 0 | I27: 2 | J27: 0 | K27: 0 | L27: 2 | M27: 0 | N27: 0 | O27: 0 | P27: 0
A28: 1.8 | B28: CSITPRTC1002 | C28: SEL ImageTrust-Transactional Client | D28: Annually | E28: 0% | F28: 12 | G28: 0 | H28: 0 | I28: 12 | J28: 0 | K28: 0 | L28: 12 | M28: 0 | N28: 0 | O28: 0 | P28: 0
A29: 1.9 | B29: CSITPRTC1002 | C29: SEL ImageTrust Server | D29: Annually | E29: 0% | F29: 2 | G29: 0 | H29: 0 | I29: 2 | J29: 0 | K29: 0 | L29: 2 | M29: 0 | N29: 0 | O29: 0 | P29: 0
A30: 1.10 | B30: 456-102-260 | C30: CAPTIVA STANDARD SERVER TEST/DRS 10K PPY | D30: Annually | E30: 0% | F30: 1 | G30: 0 | H30: 0 | I30: 1 | J30: 0 | K30: 0 | L30: 1 | M30: 0 | N30: 0 | O30: 0 | P30: 0
A31: 1.11 | B31: 1000021743 | C31: SELF IMAGE TRUST CLIENT | D31: Annually | E31: 0% | F31: 60 | G31: 0 | H31: 0 | I31: 60 | J31: 0 | K31: 0 | L31: 60 | M31: 0 | N31: 0 | O31: 0 | P31: 0
A32: 1.12 | B32: 1000031343 | C32: SEL myInsight, 51 – 200 USR, Float, 3YR Lease | D32: Annually | E32: 0% | F32: 50 | G32: 0 | H32: 0 | I32: 50 | J32: 0 | K32: 0 | L32: 50 | M32: 0 | N32: 0 | O32: 0 | P32: 0
A33: 1.13 | B33: SU – 458-000-107 | C33: Captiva Server Vol + ADVRECG + 100KPPY SUBSC = PA | D33: Annually | E33: 0% | F33: 15 | G33: 0 | H33: 0 | I33: 15 | J33: 0 | K33: 0 | L33: 15 | M33: 0 | N33: 0 | O33: 0 | P33: 0
A34: 1.14 | B34: 1000039772 | C34: Captiva STD Server + ADVRCG100KPPY | D34: Annually | E34: 0% | F34: 1 | G34: 0 | H34: 0 | I34: 1 | J34: 0 | K34: 0 | L34: 1 | M34: 0 | N34: 0 | O34: =H34+K34+N34 -> 0 | P34: 0
A35: 1.15 | B35: 1000005718 | C35: Captiva Server Vol + Adv Recog + 100K PPY | D35: Annually | E35: 0% | F35: 10 | G35: 0 | H35: 0 | I35: 10 | J35: 0 | K35: 0 | L35: 10 | M35: 0 | N35: 0 | O35: 0 | P35: 0
A36: 2 | B36: SUPPLY AND INSTALL ADDITIONAL LICENSES (GFLEET)
A37: 2.1 | B37: 457-101-905 | C37: Documentum Platform 51-200=UA | D37: Annually | E37: 0% | F37: 10 | G37: 0 | H37: =G37*F37 -> 0 | I37: 10 | J37: 0 | K37: =I37*J37 -> 0 | L37: 10 | M37: 0 | N37: =L37*M37 -> 0 | O37: =H37+K37+N37 -> 0 | P37: =E37*O37 -> 0
A38: 2.2 | B38: 457-101-850 | C38: EMC DCTM WebTop 51-200=UA | D38: Annually | E38: 0% | F38: 10 | G38: 0 | H38: =G38*F38 -> 0 | I38: 10 | J38: 0 | K38: =I38*J38 -> 0 | L38: 10 | M38: 0 | N38: =L38*M38 -> 0 | O38: =H38+K38+N38 -> 0 | P38: =E38*O38 -> 0
A39: 2.3 | B39: 1000021743 | C39: SEL Image Trust Client | D39: Annually | E39: 0% | F39: 5 | G39: 0 | H39: 0 | I39: 5 | J39: 0 | K39: 0 | L39: 5 | M39: 0 | N39: 0 | O39: =H39+K39+N39 -> 0 | P39: =E39*O39 -> 0
A40: 3 | B40: MAINTENANCE AND SUPPORT
A41: 3.1 | B41: OPENTEXT DOCUMENTUM LICENSE AND IMAGE TRUST. MAINTANANCE AND SUPPORT
A42: 3.1.1 | B42: 457-101-905 | C42: Documentum Platform 51-200=UA | D42: Annually | F42: 1 | G42: 0 | H42: =F42*G42 -> 0 | I42: 1 | J42: 0 | K42: =I42*J42 -> 0 | L42: 1 | M42: 0 | N42: =L42*M42 -> 0 | O42: =H42+K42+N42 -> 0
A43: 3.1.2 | B43: 457-101-910 | C43: DCTM Platform Extension 51-200=UA | D43: Annually | F43: 1 | G43: 0 | H43: =F43*G43 -> 0 | I43: 1 | J43: 0 | K43: =I43*J43 -> 0 | L43: 1 | M43: 0 | N43: =L43*M43 -> 0 | O43: =H43+K43+N43 -> 0
A44: 3.1.3 | B44: 457-100-263 | C44: Certified Records Manager 51-200 | D44: Annually | F44: 1 | G44: 0 | H44: 0 | I44: 1 | J44: 0 | K44: 0 | L44: 1 | M44: 0 | N44: 0 | O44: 0
A45: 3.1.4 | B45: 457-101-850 | C45: EMC DCTM WebTop 51-200=UA | D45: Annually | F45: 1 | G45: 0 | H45: 0 | I45: 1 | J45: 0 | K45: 0 | L45: 1 | M45: 0 | N45: 0 | O45: 0
A46: 3.1.5 | B46: 457-100-442 | C46: CAPTIVA STANDARD SERVER 100K PPY BUNGLE | D46: Annually | F46: 1 | G46: 0 | H46: 0 | I46: 1 | J46: 0 | K46: 0 | L46: 1 | M46: 0 | N46: 0 | O46: 0
A47: 3.1.6 | B47: 456-102-264 | C47: Captiva Server Volume+ 100k PPY Perpetual | D47: Annually | F47: 1 | G47: 0 | H47: 0 | I47: 1 | J47: 0 | K47: 0 | L47: 1 | M47: 0 | N47: 0 | O47: 0
A48: 3.1.7 | B48: 456-102-275 | C48: CAPTIVA ATTENDANT CLIENT | D48: Annually | F48: 1 | G48: 0 | H48: 0 | I48: 1 | J48: 0 | K48: 0 | L48: 1 | M48: 0 | N48: 0 | O48: 0
A49: 3.1.8 | B49: CSITPRTC1002 | C49: SEL ImageTrust-Transactional Client | D49: Annually | F49: 1 | G49: 0 | H49: 0 | I49: 1 | J49: 0 | K49: 0 | L49: 1 | M49: 0 | N49: 0 | O49: 0
A50: 3.1.9 | B50: CSITPRTC1002 | C50: SEL ImageTrust Server | D50: Annually | F50: 1 | G50: 0 | H50: 0 | I50: 1 | J50: 0 | K50: 0 | L50: 1 | M50: 0 | N50: 0 | O50: 0
A51: 3.1.10 | B51: 456-102-260 | C51: CAPTIVA STANDARD SERVER TEST/DRS 10K PPY | D51: Annually | F51: 1 | G51: 0 | H51: 0 | I51: 1 | J51: 0 | K51: 0 | L51: 1 | M51: 0 | N51: 0 | O51: 0
A52: 3.1.11 | B52: 1000021743 | C52: SELF IMAGE TRUST CLIENT | D52: Annually | F52: 1 | G52: 0 | H52: 0 | I52: 1 | J52: 0 | K52: 0 | L52: 1 | M52: 0 | N52: 0 | O52: 0
A53: 3.1.12 | B53: 1000031343 | C53: SEL myInsight, 51 – 200 USR, Float, 3YR Lease | D53: Annually | F53: 1 | G53: 0 | H53: 0 | I53: 1 | J53: 0 | K53: 0 | L53: 1 | M53: 0 | N53: 0 | O53: 0
A54: 3.1.13 | B54: SU – 458-000-107 | C54: Captiva Server Vol + ADVRECG + 100KPPY SUBSC = PA | D54: Annually | F54: 1 | G54: 0 | H54: 0 | I54: 1 | J54: 0 | K54: 0 | L54: 1 | M54: 0 | N54: 0 | O54: 0
A55: 3.1.14 | B55: 1000039772 | C55: Captiva STD Server + ADVRCG100KPPY | D55: Annually | F55: 1 | G55: 0 | H55: 0 | I55: 1 | J55: 0 | K55: 0 | L55: 1 | M55: 0 | N55: 0 | O55: =H55+K55+N55 -> 0
A56: 3.1.15 | B56: 1000005718 | C56: Captiva Server Vol + Adv Recog + 100K PPY | D56: Annually | F56: 1 | G56: 0 | H56: =F56*G56 -> 0 | I56: 1 | J56: 0 | K56: 0 | L56: 1 | M56: 0 | N56: 0 | O56: 0
A57: 3.2 | B57: SUPPLY AND INSTALL ADDITIONAL LICENSES (GFLEET). MAINTANANCE AND SUPPORT
A58: 3.2.1 | B58: 457-101-905 | C58: Documentum Platform 51-200=UA | D58: Annually | F58: 1 | G58: 0 | H58: =G58*F58 -> 0 | I58: 1 | J58: 0 | K58: =I58*J58 -> 0 | L58: 1 | M58: 0 | N58: =L58*M58 -> 0 | O58: =H58+K58+N58 -> 0
A59: 3.2.2 | B59: 457-101-850 | C59: EMC DCTM WebTop 51-200=UA | D59: Annually | F59: 1 | G59: 0 | H59: =G59*F59 -> 0 | I59: 1 | J59: 0 | K59: =I59*J59 -> 0 | L59: 1 | M59: 0 | N59: =L59*M59 -> 0 | O59: =H59+K59+N59 -> 0
A60: 3.2.3 | B60: 1000021743 | C60: SEL Image Trust Client | D60: Annually | F60: 1 | G60: 0 | H60: 0 | I60: 1 | J60: 0 | K60: 0 | L60: 1 | M60: 0 | N60: 0 | O60: =H60+K60+N60 -> 0
C61: TOTAL BID PRICE (EXCL VAT) | H61: =SUM(H21:H60) -> 0 | K61: =SUM(K21:K60) -> 0 | N61: =SUM(N21:N60) -> 0 | O61: =SUM(O21:O60) -> 0 | P61: =SUM(P21:P39) -> 0
C62: VAT (@15%) | H62: =H61*0.15 -> 0 | K62: =K61*0.15 -> 0 | N62: =N61*0.15 -> 0 | O62: =O61*0.15 -> 0
C63: TOTAL BID PRICE (INCL VAT) | H63: =H61+H62 -> 0 | K63: =K61+K62 -> 0 | N63: =N61+N62 -> 0 | O63: =O61+O62 -> 0
C67: I, the bidder, confirm that the price(s) and rate(s) quoted cover all the goods and/or works specified in the bidding documents; that the price(s) or rate(s) cover all my obligations and I accept that any mistakes regarding price(s), rate(s) or calculations will be at my own risk. [Note: First convert to PDF, then add signature]
D68: Name | F68: Capacity
D70: Signature (above) | F70: Date

Sheet PRICING SCHEDULE (2) (hidden)
C1: SUPPLY CHAIN MANAGEMENT
C2: Pricing schedule
B3: RFx No | C3: INC22963211
B4: RFx Title | C4: PROCUREMENT OF SOFTWARE LICENCES WITH SUPPORT AND MAINTENANCE FOR OPENTEXT DOCUMENTUM, OPENTEXT CAPTIVA ENTERPRISE CAPTURE AND IMAGE TRUST ON BEHALF OF THE GAUTENG DEPARTMENT OF ROADS AND TRANSPORT (GDRT) FOR A PERIOD OF 3 YEARS
B5: Bidder Name
B7: 1. INSTRUCTION FOR COMPLETING THE PRICING SCHEDULE
B8: (a) THIS PRICING SCHEDULE MUST BE SUBMITTED SEPARATELY FROM THE TECHNICAL RESPONSE, failing which the BID may be DISQUALIFIED.
B9: (b) Bidder must complete/enter YELLOW cells only
B10: (c) Unit and Line prices must be VAT EXCLUSIVE and in South African Rand (ZAR) currency.
B11: (e) The price must include all cost to deliver the goods or render the service, including all applicable taxes, duty fees, logistics/delivery, storage, labour, overtime and subsistance and travel
B12: (f) Prices that are dependent on Rate of Exchange (ROE) must use ROE indicated below, then enter in Column "Forex %" the percentage of the price that is ROE dependent (0% means the price is not ROE dependent)
C13: Foreign currency | D13: South African Rand (ZAR) exchange rate
C14: 1 US Dollar | D14: R18.38 | G14: Mark with an X, which ROE is applicable
C15: 1 Euro | D15: R20.20
C16: 1 Pound (UK) | D16: R23.51
F18: YEAR 1 | I18: YEAR 2 | L18: YEAR 3 | O18: TOTAL
A19: Item No | C19: Goods/Service description | D19: Unit of measure | E19: Forex % | F19: Qty | G19: Unit Price (Excl VAT) | H19: Line Price Y1 | I19: Qty | J19: Unit Price (Excl VAT) | K19: Line Price Y2 | L19: Qty | M19: Unit Price (Excl VAT) | N19: Line Price Y3 | O19: Line Price Term (Excl VAT) | P19: Forex Price portion | Q19: BRAND / MODEL | R19: Price clarification comment
A20: 1 | B20: OPENTEXT DOCUMENTUM LICENSE AND IMAGE TRUST
A21: 1.1 | B21: 457-101-905 | C21: Documentum Platform 51-200=UA | D21: Annually | E21: 0% | F21: 153 | G21: R3.00 | H21: =F21*G21 -> R459.00 | I21: 153 | J21: R2.00 | K21: =I21*J21 -> R306.00 | L21: 153 | M21: R1.00 | N21: =L21*M21 -> R153.00 | O21: =H21+K21+N21 -> R918.00 | P21: =E21*O21 -> 0
A22: 1.2 | B22: 457-101-910 | C22: DCTM Platform Extension 51-200=UA | D22: Annually | E22: 0% | F22: 51 | G22: R4.00 | H22: =F22*G22 -> R204.00 | I22: 51 | J22: R2.00 | K22: =I22*J22 -> R102.00 | L22: 51 | M22: R2.00 | N22: =L22*M22 -> R102.00 | O22: =H22+K22+N22 -> R408.00 | P22: =E22*O22 -> 0
A23: 1.3 | B23: 457-100-263 | C23: Certified Records Manager 51-200 | D23: Annually | E23: 0% | F23: 51 | G23: R5.00 | H23: R255.00 | I23: 51 | J23: R3.00 | K23: R153.00 | L23: 51 | M23: R3.00 | N23: R153.00 | O23: R561.00 | P23: =E23*O23 -> 0
A24: 1.4 | B24: 457-101-850 | C24: EMC DCTM WebTop 51-200=UA | D24: Annually | E24: 0% | F24: 51 | G24: R6.00 | H24: R306.00 | I24: 51 | J24: R4.00 | K24: R204.00 | L24: 51 | M24: R4.00 | N24: R204.00 | O24: R714.00 | P24: =E24*O24 -> 0
A25: 1.5 | B25: 457-100-442 | C25: CAPTIVA STANDARD SERVER 100K PPY BUNGLE | D25: Annually | E25: 0% | F25: 1 | G25: R7.00 | H25: R7.00 | I25: 1 | J25: R5.00 | K25: R5.00 | L25: 1 | M25: R5.00 | N25: R5.00 | O25: R17.00 | P25: =E25*O25 -> 0
A26: 1.6 | B26: 456-102-264 | C26: Captiva Server Volume+ 100k PPY Perpetual | D26: Annually | E26: 0% | F26: 5 | G26: R8.00 | H26: R40.00 | I26: 5 | J26: R6.00 | K26: R30.00 | L26: 5 | M26: R6.00 | N26: R30.00 | O26: R100.00 | P26: 0
A27: 1.7 | B27: 456-102-275 | C27: CAPTIVA ATTENDANT CLIENT | D27: Annually | E27: 0% | F27: 2 | G27: R9.00 | H27: R18.00 | I27: 2 | J27: R7.00 | K27: R14.00 | L27: 2 | M27: R7.00 | N27: R14.00 | O27: R46.00 | P27: 0
A28: 1.8 | B28: CSITPRTC1002 | C28: SEL ImageTrust-Transactional Client | D28: Annually | E28: 0% | F28: 12 | G28: R10.00 | H28: R120.00 | I28: 12 | J28: R8.00 | K28: R96.00 | L28: 12 | M28: R8.00 | N28: R96.00 | O28: R312.00 | P28: 0
A29: 1.9 | B29: CSITPRTC1002 | C29: SEL ImageTrust Server | D29: Annually | E29: 0% | F29: 2 | G29: R11.00 | H29: R22.00 | I29: 2 | J29: R9.00 | K29: R18.00 | L29: 2 | M29: R9.00 | N29: R18.00 | O29: R58.00 | P29: 0
A30: 1.10 | B30: 456-102-260 | C30: CAPTIVA STANDARD SERVER TEST/DRS 10K PPY | D30: Annually | E30: 0% | F30: 1 | G30: R11.00 | H30: R11.00 | I30: 1 | J30: R9.00 | K30: R9.00 | L30: 1 | M30: R9.00 | N30: R9.00 | O30: R29.00 | P30: 0
A31: 1.11 | B31: 1000021743 | C31: SELF IMAGE TRUST CLIENT | D31: Annually | E31: 0% | F31: 60 | G31: R1.00 | H31: R60.00 | I31: 60 | J31: R1.00 | K31: R60.00 | L31: 60 | M31: R1.00 | N31: R60.00 | O31: R180.00 | P31: 0
A32: 1.12 | B32: 1000031343 | C32: SEL myInsight, 51 – 200 USR, Float, 3YR Lease | D32: Annually | E32: 0% | F32: 50 | G32: R2.00 | H32: R100.00 | I32: 50 | J32: R2.00 | K32: R100.00 | L32: 50 | M32: R2.00 | N32: R100.00 | O32: R300.00 | P32: 0
A33: 1.13 | B33: SU – 458-000-107 | C33: Captiva Server Vol + ADVRECG + 100KPPY SUBSC = PA | D33: Annually | E33: 0% | F33: 15 | G33: R3.00 | H33: R45.00 | I33: 15 | J33: R3.00 | K33: R45.00 | L33: 15 | M33: R3.00 | N33: R45.00 | O33: R135.00 | P33: 0
A34: 1.14 | B34: 1000039772 | C34: Captiva STD Server + ADVRCG100KPPY | D34: Annually | E34: 0% | F34: 1 | G34: R11.00 | H34: R11.00 | I34: 1 | J34: R3.00 | K34: R3.00 | L34: 1 | M34: R9.00 | N34: R9.00 | O34: =H34+K34+N34 -> R23.00 | P34: 0
A35: 1.15 | B35: 1000005718 | C35: Captiva Server Vol + Adv Recog + 100K PPY | D35: Annually | E35: 0% | F35: 10 | G35: R3.00 | H35: =F35*G35 -> R30.00 | I35: 10 | J35: R5.00 | K35: R50.00 | L35: 10 | M35: R8.00 | N35: R80.00 | O35: R160.00 | P35: 0
A36: 2 | B36: SUPPLY AND INSTALL ADDITIONAL LICENSES (GFLEET)
A37: 2.1 | B37: 457-101-905 | C37: Documentum Platform 51-200=UA | D37: Annually | E37: 0% | F37: 10 | G37: R1.00 | H37: =G37*F37 -> R10.00 | I37: 10 | J37: R1.00 | K37: =I37*J37 -> R10.00 | L37: 10 | M37: R1.00 | N37: =L37*M37 -> R10.00 | O37: =H37+K37+N37 -> R30.00 | P37: =E37*O37 -> 0
A38: 2.2 | B38: 457-101-850 | C38: EMC DCTM WebTop 51-200=UA | D38: Annually | E38: 0% | F38: 10 | G38: R2.00 | H38: =G38*F38 -> R20.00 | I38: 10 | J38: R2.00 | K38: =I38*J38 -> R20.00 | L38: 10 | M38: R2.00 | N38: =L38*M38 -> R20.00 | O38: =H38+K38+N38 -> R60.00 | P38: =E38*O38 -> 0
A39: 2.3 | B39: 1000021743 | C39: SEL Image Trust Client | D39: Annually | E39: 0% | F39: 5 | G39: R3.00 | H39: R15.00 | I39: 5 | J39: R3.00 | K39: R15.00 | L39: 5 | M39: R3.00 | N39: R15.00 | O39: =H39+K39+N39 -> R45.00
A40: 3 | B40: MAINTENANCE AND SUPPORT
A41: 3.1 | C41: Maintenance and Support of all software modules | D41: Annually | F41: 1 | G41: R3.00 | H41: =F41*G41 -> R3.00 | I41: 1 | J41: R3.00 | K41: =I41*J41 -> R3.00 | L41: 1 | M41: R3.00 | N41: =M41*L41 -> R3.00 | O41: =H41+K41+N41 -> R9.00
C42: TOTAL BID PRICE (EXCL VAT) | H42: =SUM(H21:H41) -> R1,736.00 | K42: =SUM(K21:K41) -> R1,243.00 | N42: =SUM(N21:N41) -> R1,126.00 | O42: =SUM(O21:O41) -> R4,105.00
C43: VAT (@15%) | H43: =H42*0.15 -> R260.40 | K43: =K42*0.15 -> R186.45 | N43: =N42*0.15 -> R168.90 | O43: =O42*0.15 -> R615.75
C44: TOTAL BID PRICE (INCL VAT) | H44: =H42+H43 -> R1,996.40 | K44: =K42+K43 -> R1,429.45 | N44: =N42+N43 -> R1,294.90 | O44: =O42+O43 -> R4,720.75
C47: I, the bidder, confirm that the price(s) and rate(s) quoted cover all the goods and/or works specified in the bidding documents; that the price(s) or rate(s) cover all my obligations and I accept that any mistakes regarding price(s), rate(s) or calculations will be at my own risk. [Note: First convert to PDF, then add signature]
D48: Name | F48: Capacity
D50: Signature (above) | F50: Date
H57: 8
